bitfinex-derivatives/quotes_BTCF0:USTF0_20250411
["timestamp","ask_amount","ask_price","bid_price","bid_amount"]
[1744365714757,0.1820826,82364.0,82363.0,0.03128565]
[1744365715756,0.5428826,82364.0,82363.0,0.03128565]
[1744365716147,0.5428826,82364.0,82363.0,0.00048565]
[1744365716851,0.1215062,82348.0,82340.0,0.3608]
[1744365717047,0.1215092,82346.0,82345.0,0.0304]
[1744365717555,0.1215092,82346.0,82345.0,0.1519107]
[1744365717756,0.1215092,82346.0,82345.0,0.0304]
[1744365718260,0.1215092,82346.0,82345.0,0.1519107]
[1744365718443,0.1215092,82346.0,82345.0,0.0304]
[1744365718956,0.1215092,82346.0,82345.0,0.1519107]
[1744365719958,0.5430612,82348.0,82347.0,0.1215077]
[1744365720455,0.12168034,82354.0,82348.0,0.0607531]
[1744365720655,0.1215028,82352.0,82351.0,0.1215015]
[1744365721057,0.06093104,82354.0,82353.0,0.1214989]
[1744365723261,0.00018214,82354.0,82353.0,0.1214989]
[1744365723764,0.1215003,82352.0,82351.0,0.0607502]
[1744365724062,0.1215003,82352.0,82351.0,0.0321]
[1744365724858,0.1536003,82352.0,82351.0,0.0321]
[1744365725757,0.1215058,82349.0,82347.0,0.1215072]
[1744365725958,0.1215058,82349.0,82348.0,0.1536062]
[1744365726264,0.12172014,82354.0,82353.0,0.1214989]
[1744365726665,0.1214989,82353.0,82352.0,0.1522003]
[1744365726867,0.1525989,82353.0,82352.0,0.1522003]
[1744365727966,0.1525989,82353.0,82352.0,0.0307]
[1744365728162,0.1525989,82353.0,82352.0,0.1522003]
[1744365729067,0.1525989,82353.0,82352.0,0.0307]
[1744365729562,0.1525989,82353.0,82352.0,0.1522003]
[1744365729966,0.1215121,82344.0,82343.0,0.0607566]
[1744365730462,0.1215121,82344.0,82342.0,0.0308]
[1744365730666,0.1523136,82343.0,82342.0,0.0308]
[1744365730966,0.1215136,82343.0,82342.0,0.1523151]
[1744365731161,0.1215109,82345.0,82344.0,0.1215107]
[1744365731363,0.0607525,82349.0,82348.0,0.1215062]
[1744365731569,0.08536,82350.0,82349.0,0.1215048]
[1744365731763,0.0607502,82352.0,82351.0,0.1215018]
[1744365731965,0.0308,82353.0,82352.0,0.1215003]
[1744365732970,0.21404046,82354.0,82353.0,0.1214989]
[1744365733272,0.33553786,82354.0,82353.0,0.1214989]
[1744365734566,0.21404046,82354.0,82353.0,0.1214989]
[1744365734772,0.33553786,82354.0,82353.0,0.1214989]
[1744365735372,0.1215136,82344.0,82343.0,0.1215113]
[1744365735872,0.1517136,82344.0,82343.0,0.1215113]
[1744365736373,0.1215136,82344.0,82343.0,0.1215113]
[1744365736575,0.0607534,82348.0,82347.0,0.1215077]
[1744365737272,0.0607934,82348.0,82347.0,0.1215077]
[1744365739276,4e-05,82348.0,82347.0,0.1215077]
[1744365739574,0.36085401,82352.0,82349.0,0.1215048]
[1744365739575,0.1215038,82350.0,82349.0,0.1215048]
[1744365740160,0.60326253,82352.0,82348.0,0.03]
[1744365740363,0.54251233,82352.0,82351.0,0.1215018]
[1744365740561,0.18165832,82352.0,82351.0,0.1215018]
[1744365740768,0.18169832,82352.0,82351.0,0.4823018]
[1744365741161,0.18165832,82352.0,82351.0,0.4823018]
[1744365741371,0.18169832,82352.0,82351.0,0.4823018]
[1744365744687,4e-05,82352.0,82351.0,0.4823018]
[1744365745582,0.14573171,82354.0,82353.0,0.1214989]
[1744365746776,0.14577171,82354.0,82353.0,0.1214989]
[1744365747183,0.14573171,82354.0,82353.0,0.1214989]
[1744365747481,0.14577171,82354.0,82353.0,0.1214989]
[1744365748674,0.18165832,82361.0,82360.0,0.1214885]
[1744365748868,5.401e-05,82362.0,82361.0,0.1214871]
[1744365749073,5.401e-05,82362.0,82361.0,0.1543871]
[1744365749284,5.401e-05,82362.0,82361.0,0.1843871]
[1744365749674,5.401e-05,82362.0,82361.0,0.1514871]
[1744365750779,0.12153961,82362.0,82361.0,0.1514871]
[1744365751188,0.12153961,82362.0,82361.0,0.1214871]
[1744365753488,0.36226451,82362.0,82361.0,0.1214871]
[1744365754884,0.36226451,82362.0,82361.0,0.1529871]
[1744365757990,0.12153961,82362.0,82361.0,0.1214871]
[1744365758891,0.12143961,82362.0,82361.0,0.1214871]
[1744365763684,0.1822387,82359.0,82358.0,0.1214902]
[1744365763991,0.1822453,82356.0,82355.0,0.1214945]
[1744365764693,0.060756,82345.0,82344.0,0.060756]
[1744365764886,0.1822696,82345.0,82344.0,0.060756]
[1744365766193,0.060756,82345.0,82344.0,0.060756]
[1744365771094,0.1215151,82342.0,82341.0,0.2142728]
[1744365771296,0.1215151,82342.0,82341.0,0.1822728]
[1744365773895,0.0311,82347.0,82346.0,0.1215092]
[1744365774501,0.0621,82347.0,82346.0,0.1215092]
[1744365775296,0.06214,82347.0,82346.0,0.1215092]
[1744365776598,0.42294,82347.0,82346.0,0.1215092]
[1744365777099,0.5444477,82347.0,82346.0,0.1215092]
[1744365777594,0.06214,82347.0,82346.0,0.1215092]
[1744365780691,0.1836477,82347.0,82346.0,0.1215092]
[1744365785902,4e-05,82347.0,82346.0,0.1215092]
[1744365786099,0.18187273,82349.0,82348.0,0.1215062]
[1744365786404,5.401e-05,82352.0,82351.0,0.1215018]
[1744365786699,0.00018214,82353.0,82352.0,0.1215003]
[1744365790411,0.00022214,82353.0,82352.0,0.1215003]
[1744365791018,0.00018214,82353.0,82352.0,0.1215003]
[1744365791416,0.00022214,82353.0,82352.0,0.1215003]
[1744365793114,0.00018214,82353.0,82352.0,0.1215003]
[1744365793420,0.00022214,82353.0,82352.0,0.1215003]
[1744365794319,4e-08,82353.0,82352.0,0.1215003]
[1744365795814,0.00018214,82361.0,82360.0,0.1214885]
[1744365796016,0.00018214,82361.0,82360.0,0.4822885]
[1744365796711,0.00022214,82361.0,82360.0,0.4822885]
[1744365797707,0.00018214,82361.0,82360.0,0.4822885]
[1744365797912,0.00022214,82361.0,82360.0,0.4822885]
[1744365799422,0.1818685,82369.0,82368.0,0.1214767]
[1744365799811,0.1819085,82369.0,82368.0,0.1214767]
[1744365800717,0.1819085,82369.0,82368.0,0.1518767]
[1744365800919,0.10897533,82369.0,82368.0,0.1518767]
[1744365801123,0.10893533,82369.0,82368.0,0.1518767]
[1744365801422,0.10897533,82369.0,82368.0,0.1518767]
[1744365801613,0.10893533,82369.0,82368.0,0.1518767]
[1744365801814,0.10897533,82369.0,82368.0,0.1518767]
[1744365804618,0.00018214,82377.0,82376.0,0.1214649]
[1744365805025,0.06098214,82377.0,82376.0,0.1214649]
[1744365805332,0.05910385,82377.0,82376.0,0.1214649]
[1744365806123,0.05910385,82377.0,82376.0,0.1540649]
[1744365806823,0.05910385,82377.0,82376.0,0.1214649]
[1744365807429,0.05910385,82377.0,82374.0,0.1821999]
[1744365807430,0.1214664,82375.0,82374.0,0.1821999]
[1744365810731,0.24130075,82377.0,82376.0,0.1214649]
[1744365811126,0.11983625,82377.0,82376.0,0.1214649]
[1744365812537,0.05910385,82377.0,82376.0,0.1214649]
[1744365812737,0.2042278,82377.0,82376.0,0.1214649]
[1744365812947,0.3256913,82377.0,82376.0,0.1214649]
[1744365813437,0.2042278,82377.0,82376.0,0.1214649]
[1744365814030,0.3256913,82377.0,82376.0,0.1214649]
[1744365814231,0.2042278,82377.0,82376.0,0.1214649]
[1744365814438,0.3256913,82377.0,82376.0,0.1214649]
[1744365816737,0.2042278,82377.0,82376.0,0.1214649]
[1744365817342,0.05914385,82377.0,82376.0,0.1214649]
[1744365817540,0.18060735,82377.0,82376.0,0.1214649]
[1744365817737,0.05914385,82377.0,82376.0,0.1214649]
[1744365818535,0.18060735,82377.0,82376.0,0.1214649]
[1744365819627,0.05914385,82377.0,82376.0,0.1214649]
[1744365820443,0.18060735,82377.0,82376.0,0.1214649]
[1744365821041,0.05914385,82377.0,82376.0,0.1214649]
[1744365823144,0.18060735,82377.0,82376.0,0.1214649]
[1744365823458,0.05914385,82377.0,82376.0,0.1214649]
[1744365832346,0.05914385,82377.0,82376.0,0.1526649]
[1744365834658,0.1214708,82373.0,82372.0,0.1214671]
[1744365834952,0.1214708,82373.0,82372.0,0.1526671]
[1744365835656,0.0636,82374.0,82373.0,0.1214694]
[1744365835953,0.1214679,82374.0,82373.0,0.1526694]
[1744365836764,4e-05,82377.0,82374.0,0.0607332]
[1744365837055,4e-05,82377.0,82376.0,0.1214649]
[1744365837257,0.1215035,82377.0,82376.0,0.1214649]
[1744365838860,4e-05,82377.0,82376.0,0.1214649]
[1744365840059,0.08404,82379.0,82378.0,0.121462]
[1744365840649,0.08404,82379.0,82378.0,0.184662]
[1744365840851,0.08408,82379.0,82378.0,0.184662]
[1744365841647,0.08404,82379.0,82378.0,0.184662]
[1744365841851,0.08408,82379.0,82378.0,0.184662]
[1744365842159,4e-05,82379.0,82378.0,0.184662]
[1744365842557,0.21643484,82380.0,82379.0,0.1214605]
[1744365843054,0.21643484,82380.0,82379.0,0.1840605]
[1744365843650,0.00013287,82401.0,82386.0,0.0607247]
[1744365843855,0.25273482,82400.0,82397.0,0.121434]
[1744365844258,0.1543725,82398.0,82397.0,0.121434]
[1744365844459,0.03294,82398.0,82397.0,0.121434]
[1744365844758,4e-05,82398.0,82397.0,0.121434]
[1744365844963,4e-05,82398.0,82397.0,0.544834]
[1744365845261,0.09571,82419.0,82403.0,0.1214251]
[1744365845457,0.09571,82419.0,82406.0,0.1214207]
[1744365845853,0.09571,82419.0,82407.0,0.060709]
[1744365846057,0.09571,82419.0,82418.0,0.121403]
[1744365846962,0.09571,82419.0,82418.0,0.185103]
[1744365847264,0.09575,82419.0,82418.0,0.185103]
[1744365847464,0.09571,82419.0,82418.0,0.185103]
[1744365847767,0.09575,82419.0,82418.0,0.185103]
[1744365848165,0.09571,82419.0,82418.0,0.185103]
[1744365848366,0.09575,82419.0,82418.0,0.185103]
[1744365851567,0.18163198,82422.0,82421.0,0.1213986]
[1744365852269,5.401e-05,82432.0,82431.0,0.1213839]
[1744365852455,0.0004,82434.0,82433.0,0.121381]
[1744365852657,0.032,82452.0,82442.0,0.0606832]
[1744365852966,5.401e-05,82449.0,82446.0,0.1213618]
[1744365853664,0.18163198,82453.0,82446.0,0.1213618]
[1744365853856,0.14475587,82447.0,82446.0,0.1213618]
[1744365854063,0.14471587,82447.0,82446.0,0.1213618]
[1744365854267,0.14475587,82447.0,82446.0,0.1213618]
[1744365855256,0.18163198,82453.0,82452.0,0.121353]
[1744365855569,0.0315,82477.0,82452.0,0.769]
[1744365855759,0.2088202,82477.0,82476.0,0.1213177]
[1744365856061,0.1773202,82477.0,82476.0,0.1213177]
[1744365856265,0.2986764,82477.0,82476.0,0.1213177]
[1744365857361,0.2986764,82477.0,82476.0,0.1545177]
[1744365857764,0.1443602,82477.0,82476.0,0.5153177]
[1744365858071,0.1443202,82477.0,82476.0,0.5153177]
[1744365858279,0.1443602,82477.0,82476.0,0.5153177]
[1744365859171,0.1443602,82477.0,82467.0,0.13214303]
[1744365859172,0.1443602,82477.0,82466.0,0.3608]
[1744365859364,0.1819814,82475.0,82474.0,0.1213202]
[1744365859564,0.0935,82476.0,82475.0,0.1213191]
[1744365859870,4e-05,82477.0,82476.0,0.1213177]
[1744365860065,0.1516104,82481.0,82480.0,0.1213118]
[1744365861264,0.0622,82481.0,82480.0,0.1213118]
[1744365861872,0.1835503,82481.0,82480.0,0.1213118]
[1744365862174,0.1835503,82481.0,82480.0,0.1538118]
[1744365862580,0.06224,82481.0,82480.0,0.1538118]
[1744365862972,0.1835503,82481.0,82480.0,0.1538118]
[1744365864075,0.06224,82481.0,82480.0,0.1538118]
[1744365864581,0.1835503,82481.0,82480.0,0.1538118]
[1744365864879,0.1835503,82481.0,82480.0,0.1213118]
[1744365865384,0.06224,82481.0,82480.0,0.1213118]
[1744365865772,0.1835503,82481.0,82480.0,0.1213118]
[1744365868576,0.1213191,82476.0,82475.0,0.1819724]
[1744365868973,0.1865191,82476.0,82475.0,0.1819724]
[1744365875084,0.0652,82476.0,82475.0,0.1819724]
[1744365875287,0.1865177,82476.0,82475.0,0.1819724]
[1744365876398,0.1213221,82473.0,82469.0,0.0606637]
[1744365876597,0.4821221,82473.0,82472.0,0.12150551]
[1744365877396,0.0652,82476.0,82475.0,0.1213191]
[1744365877695,0.0321,82476.0,82475.0,0.1213191]
[1744365878300,0.1213206,82474.0,82473.0,0.2426415]
[1744365878903,0.1530206,82474.0,82473.0,0.2426415]
[1744365880599,0.1839206,82474.0,82473.0,0.2426415]
[1744365880893,0.1213221,82473.0,82472.0,0.12150551]
[1744365881103,0.1516221,82473.0,82472.0,0.12150551]
[1744365881395,0.1833221,82473.0,82472.0,0.12150551]
[1744365883306,0.1833221,82473.0,82472.0,0.11012757]
[1744365883307,0.5441221,82473.0,82472.0,0.11012757]
[1744365884100,0.1833221,82473.0,82472.0,0.11012757]
[1744365885005,0.182,82467.0,82466.0,0.1819937]
[1744365885601,0.0606661,82467.0,82466.0,0.1819937]
[1744365886713,0.0606661,82467.0,82466.0,0.0606657]
[1744365886904,0.1213324,82466.0,82465.0,0.0316]
[1744365887105,0.1213339,82465.0,82464.0,0.00018191]
[1744365887308,0.5150339,82465.0,82464.0,0.12151721]
[1744365888716,0.5150339,82465.0,82464.0,0.00018191]
[1744365889510,0.5150339,82465.0,82464.0,8.8e-06]
[1744365890106,0.5476339,82465.0,82464.0,8.8e-06]
[1744365892004,0.7976339,82465.0,82464.0,8.8e-06]
[1744365892718,0.5476339,82465.0,82464.0,8.8e-06]
[1744365894312,0.6317939,82465.0,82464.0,8.8e-06]
[1744365895323,0.6317939,82465.0,82444.0,0.0606821]
[1744365895324,0.1213633,82445.0,82444.0,0.0606821]
[1744365896015,0.1830633,82445.0,82444.0,0.0606821]
[1744365896316,0.1213648,82444.0,82443.0,0.152066]
[1744365896615,0.1213648,82444.0,82443.0,0.0307]
[1744365896818,0.1830648,82444.0,82443.0,0.0307]
[1744365898103,0.1213751,82437.0,82436.0,0.00018191]
[1744365898313,0.4821751,82437.0,82436.0,0.00018191]
[1744365899116,0.5441751,82437.0,82436.0,0.00018191]
[1744365900713,0.1214151,82437.0,82436.0,0.00018191]
[1744365900917,0.4822151,82437.0,82436.0,0.00018191]
[1744365901319,0.5461151,82437.0,82436.0,0.00018191]
[1744365901620,0.6302751,82437.0,82436.0,0.00018191]
[1744365902014,0.5461151,82437.0,82436.0,0.00018191]
[1744365902412,0.5461151,82437.0,82436.0,0.12155841]
[1744365902613,0.5461151,82437.0,82436.0,0.06168191]
[1744365904916,0.4822151,82437.0,82436.0,0.18305841]
[1744365905118,0.0606832,82443.0,82442.0,0.1213662]
[1744365905315,0.121363,82446.0,82445.0,0.1213633]
[1744365906324,0.121403,82446.0,82445.0,0.1213633]
[1744365906623,0.121363,82446.0,82445.0,0.1213633]
[1744365906823,0.121403,82446.0,82445.0,0.1213633]
[1744365907014,0.1213662,82443.0,82442.0,0.0611]
[1744365907520,0.1213662,82443.0,82442.0,0.1824677]
[1744365911323,0.4821662,82443.0,82442.0,0.1824677]
[1744365917831,0.1213662,82443.0,82442.0,0.1824677]
[1744365918021,0.4821662,82443.0,82442.0,0.1824677]
[1744365918722,0.62721458,82443.0,82442.0,0.1824677]
[1744365919124,0.62721458,82443.0,82442.0,0.0302]
[1744365919331,0.1213736,82438.0,82437.0,0.0317]
[1744365919530,0.1213751,82437.0,82436.0,0.00018191]
[1744365919830,0.1539751,82437.0,82436.0,0.00018191]
[1744365923523,0.0326,82437.0,82411.0,0.00048537]
[1744365923725,0.482206,82416.0,82415.0,0.2145105]
[1744365924625,0.514706,82416.0,82415.0,0.2145105]
[1744365924833,0.514706,82416.0,82415.0,0.0324]
[1744365925026,0.1214119,82412.0,82411.0,0.00048537]
[1744365925226,0.1214119,82412.0,82411.0,0.12189877]
[1744365926628,0.1214119,82412.0,82411.0,0.00048537]
[1744365926829,0.13350216,82412.0,82411.0,0.00048537]
[1744365927132,0.16440216,82412.0,82411.0,0.00048537]
[1744365927534,0.19690216,82412.0,82411.0,0.00048537]
[1744365928337,0.19690216,82412.0,82411.0,0.12189877]
[1744365930130,0.19690216,82412.0,82411.0,0.00048537]
[1744365930733,0.1214178,82408.0,82407.0,0.00018191]
[1744365931736,0.1842178,82408.0,82407.0,0.00018191]
[1744365932138,0.1214384,82394.0,82390.0,0.0607216]
[1744365932335,0.1214384,82394.0,82393.0,0.1821544]
[1744365932651,0.1214384,82394.0,82393.0,0.0607192]
[1744365932827,0.1214414,82392.0,82391.0,0.0654]
[1744365933025,0.0607228,82390.0,82387.0,0.00048551]
[1744365933238,0.0607228,82390.0,82377.0,0.186859]
[1744365933239,0.121462,82378.0,82377.0,0.186859]
[1744365933538,0.1214635,82377.0,82376.0,0.21459342]
[1744365934040,0.1214635,82377.0,82376.0,0.33605832]
[1744365934238,0.13041781,82377.0,82376.0,0.21459342]
[1744365934537,0.19551781,82377.0,82376.0,0.21459342]
[1744365934837,0.55631781,82377.0,82376.0,0.21459342]
[1744365935630,0.0607326,82376.0,82369.0,0.15375392]
[1744365935830,0.4822738,82370.0,82369.0,0.15375392]
[1744365937225,0.5454738,82370.0,82369.0,0.15375392]
[1744365937433,0.5454738,82370.0,82369.0,0.00018202]
[1744365937634,0.1214826,82364.0,82363.0,0.00048565]
[1744365938641,0.1846826,82364.0,82363.0,0.00048565]
[1744365938840,0.1846826,82364.0,82363.0,0.12196975]
[1744365940342,0.1215086,82352.0,82351.0,0.1822433]
[1744365940641,0.4823086,82352.0,82351.0,0.1822433]
[1744365940842,0.4823086,82352.0,82351.0,0.2428433]
[1744365941043,0.2052959,82355.0,82354.0,0.1214974]
[1744365943345,0.2691959,82355.0,82354.0,0.1214974]
[1744365946045,0.08384,82355.0,82354.0,0.1214974]
[1744365946241,0.3608,82359.0,82358.0,0.1214915]
[1744365946641,0.36084,82359.0,82358.0,0.1214915]
[1744365947042,0.3608,82359.0,82358.0,0.1214915]
[1744365947245,0.36084,82359.0,82358.0,0.1525915]
[1744365950454,0.48233,82359.0,82358.0,0.1525915]
[1744365952642,0.48223,82359.0,82358.0,0.1525915]
[1744365953445,0.36074,82359.0,82358.0,0.1525915]
[1744365953845,0.48223,82359.0,82358.0,0.1525915]
[1744365954054,0.39074,82359.0,82358.0,0.1525915]
[1744365954761,0.36074,82359.0,82358.0,0.1525915]
[1744365955053,0.3607,82359.0,82358.0,0.1525915]
[1744365955346,0.36074,82359.0,82358.0,0.1525915]
[1744365955854,0.39374,82359.0,82358.0,0.1525915]
[1744365958052,0.51523,82359.0,82358.0,0.1525915]
[1744365959747,0.39374,82359.0,82358.0,0.1525915]
[1744365960652,0.51523,82359.0,82358.0,0.1525915]
[1744365961052,0.51523,82359.0,82358.0,0.1214915]
[1744365961855,0.51523,82359.0,82358.0,0.1514915]
[1744365962055,0.033,82359.0,82358.0,0.1823915]
[1744365962261,0.03304,82359.0,82358.0,0.1823915]
[1744365963063,0.08398214,82363.0,82362.0,0.1214856]
[1744365963752,0.08398214,82363.0,82362.0,0.1840856]
[1744365963954,0.00018214,82363.0,82362.0,0.1840856]
[1744365964252,5.401e-05,82365.0,82364.0,0.1214826]
[1744365964453,5.401e-05,82365.0,82362.0,0.4841421]
[1744365964454,7.291e-05,82369.0,82368.0,0.1214767]
[1744365964655,0.0838,82383.0,82381.0,0.1214576]
[1744365964855,7.291e-05,82383.0,82381.0,0.1214576]
[1744365965056,0.21531575,82388.0,82387.0,0.1214487]
[1744365965254,0.21531575,82388.0,82387.0,0.4822487]
[1744365965458,5.401e-05,82392.0,82391.0,0.1214428]
[1744365966560,0.1821745,82388.0,82387.0,0.1214438]
[1744365966860,0.364204,82388.0,82387.0,0.1214438]
[1744365967060,0.1820295,82388.0,82387.0,0.1214438]
[1744365967650,0.2137295,82388.0,82387.0,0.1840438]
[1744365967852,0.2137695,82388.0,82387.0,0.1840438]
[1744365968354,0.1820695,82388.0,82387.0,0.1840438]
[1744365968551,0.1820295,82388.0,82387.0,0.1840438]
[1744365968752,0.1820695,82388.0,82387.0,0.1840438]
[1744365970154,0.1820295,82388.0,82387.0,0.1840438]
[1744365970454,0.1820695,82388.0,82387.0,0.1840438]
[1744365971266,0.1820695,82388.0,82387.0,0.5448438]
[1744365971478,0.00025505,82396.0,82389.0,0.0607226]
[1744365971675,0.25109339,82404.0,82397.0,0.0607168]
[1744365971676,6e-08,82404.0,82397.0,0.0607168]
[1744365971849,0.00897379,82428.0,82403.0,0.3608]
[1744365972054,1e-08,82411.0,82410.0,0.4822148]
[1744365972359,0.0332,82427.0,82426.0,0.1213913]
[1744365972858,0.03324,82427.0,82426.0,0.1213913]
[1744365973051,0.0655,82427.0,82426.0,0.1213913]
[1744365973358,0.06554,82427.0,82426.0,0.1858913]
[1744365973754,0.1869298,82427.0,82426.0,0.1858913]
[1744365974154,0.1869298,82427.0,82426.0,0.1213913]
[1744365978066,0.1214016,82419.0,82418.0,0.00018202]
[1744365978466,0.1214016,82419.0,82418.0,0.12158502]
[1744365979167,0.1830016,82419.0,82418.0,0.12158502]
[1744365980453,0.0616,82419.0,82418.0,0.15178502]
[1744365980659,0.1830016,82419.0,82418.0,0.18458502]
[1744365981871,0.1830016,82419.0,82418.0,0.12158502]
[1744365983061,0.1830016,82419.0,82418.0,0.00018202]
[1744365983967,0.1830016,82419.0,82418.0,0.12158502]
[1744365984358,0.1214148,82410.0,82409.0,0.060708]
[1744365984772,0.1821298,82408.0,82407.0,0.1214183]
[1744365985569,0.2451298,82408.0,82407.0,0.1214183]
[1744365986571,0.0607125,82404.0,82400.0,0.3608]
[1744365986761,0.1214296,82400.0,82399.0,0.00018202]
[1744365986961,0.1214472,82388.0,82381.0,0.0319]
[1744365987167,0.4822472,82388.0,82384.0,0.1214518]
[1744365987461,0.1214472,82388.0,82373.0,0.0607346]
[1744365987661,0.4822472,82388.0,82375.0,0.0319]
[1744365987865,0.5452472,82388.0,82375.0,0.0926332]
[1744365988070,0.5452472,82388.0,82375.0,0.0319]
[1744365988271,0.5452472,82388.0,82379.0,0.00012242]
[1744365988571,0.5452472,82388.0,82381.0,0.121457]
[1744365988971,0.5452472,82388.0,82382.0,0.1214556]
[1744365989372,0.5452472,82388.0,82384.0,0.1214525]
[1744365989975,0.5452472,82388.0,82379.0,0.06085262]
[1744365990175,0.5452472,82388.0,82382.0,0.1214561]
[1744365990378,0.1214826,82364.0,82363.0,0.12196975]
[1744365991473,0.186981,82366.0,82365.0,0.1214812]
[1744365991679,0.00018202,82372.0,82371.0,0.1214723]
[1744365992066,0.12169282,82372.0,82371.0,0.1214723]
[1744365992771,0.00022202,82372.0,82371.0,0.1214723]
[1744365992973,0.00022202,82372.0,82371.0,0.1538723]
[1744365993176,0.00018202,82372.0,82371.0,0.1538723]
[1744365993375,0.00022202,82372.0,82371.0,0.1538723]
[1744366003576,9.842e-05,82407.0,82384.0,0.1214531]
[1744366003577,0.08376,82385.0,82384.0,0.1214531]
[1744366003777,0.08376,82385.0,82384.0,0.4822531]
[1744366004281,0.08376,82385.0,82384.0,0.5482531]
[1744366004978,0.0838,82385.0,82384.0,0.5482531]
[1744366005476,4e-05,82385.0,82384.0,0.5482531]
[1744366006283,0.12162192,82393.0,82392.0,0.1214414]
[1744366007781,0.15482192,82393.0,82392.0,0.1214414]
[1744366008081,0.03338202,82393.0,82392.0,0.1214414]
[1744366008880,0.15482192,82393.0,82392.0,0.1214414]
[1744366009086,0.15482192,82393.0,82392.0,0.1858414]
[1744366009285,0.15486192,82393.0,82392.0,0.1858414]
[1744366011882,0.03342202,82393.0,82392.0,0.1858414]
[1744366012573,0.00022202,82393.0,82392.0,0.1858414]
[1744366015087,0.00018202,82393.0,82392.0,0.1858414]
[1744366015288,0.00022202,82393.0,82392.0,0.1858414]
[1744366017791,0.12166192,82393.0,82392.0,0.1858414]
[1744366017989,0.18706192,82393.0,82392.0,0.1214414]
[1744366018688,0.00018202,82393.0,82392.0,0.1214414]
[1744366018890,0.00018202,82393.0,82392.0,0.1816414]
[1744366019392,0.00022202,82393.0,82392.0,0.1816414]
[1744366019581,0.00018202,82393.0,82392.0,0.1816414]
[1744366019782,0.00022202,82393.0,82392.0,0.1214414]
[1744366019983,0.06442202,82393.0,82392.0,0.1214414]
[1744366020191,0.18586192,82393.0,82392.0,0.1214414]
[1744366020393,0.06442202,82393.0,82392.0,0.1214414]
[1744366023795,0.18586192,82393.0,82392.0,0.1214414]
[1744366026395,0.03202202,82393.0,82392.0,0.1214414]
[1744366026694,0.03198202,82393.0,82392.0,0.1836414]
[1744366026898,0.03202202,82393.0,82392.0,0.1836414]
[1744366027088,0.03198202,82393.0,82392.0,0.1836414]
[1744366027288,0.03202202,82393.0,82392.0,0.1836414]
[1744366035006,0.03202202,82393.0,82392.0,0.1214414]
[1744366035197,0.15346192,82393.0,82392.0,0.1214414]
[1744366035709,0.03202202,82393.0,82392.0,0.1214414]
[1744366036601,0.06242202,82393.0,82392.0,0.1214414]
[1744366036799,0.06242202,82393.0,82384.0,0.0647]
[1744366037003,0.1214517,82388.0,82387.0,0.1821688]
[1744366037906,0.1861517,82388.0,82387.0,0.1821688]
[1744366040704,0.0647,82388.0,82387.0,0.5429688]
[1744366040909,0.0647,82388.0,82387.0,0.6070688]
[1744366041597,0.0314,82388.0,82387.0,0.6070688]
[1744366041907,0.00022202,82393.0,82392.0,0.1214414]
[1744366042105,0.00018202,82393.0,82392.0,0.1214414]
[1744366042307,0.00022202,82393.0,82392.0,0.1855414]
[1744366042501,0.00018202,82393.0,82392.0,0.1855414]
[1744366042702,0.0319,82410.0,82404.0,0.0607111]
[1744366042903,0.0319,82410.0,82409.0,0.1214163]
[1744366042904,0.0004,82410.0,82409.0,0.1214163]
[1744366043205,0.00044,82410.0,82409.0,0.1214163]
[1744366043408,0.0315,82420.0,82419.0,0.1214016]
[1744366043811,0.03154,82420.0,82419.0,0.1214016]
[1744366044306,0.00018202,82428.0,82425.0,0.1213927]
[1744366044512,0.00018202,82428.0,82427.0,0.1213898]
[1744366044817,0.00022202,82428.0,82427.0,0.1213898]
[1744366045003,0.00022202,82428.0,82427.0,0.1541898]
[1744366045605,0.00018202,82428.0,82427.0,0.1541898]
[1744366045906,0.00022202,82428.0,82427.0,0.1541898]
[1744366046806,0.0313,82437.0,82430.0,0.0606924]
[1744366047110,0.08368,82453.0,82452.0,0.121353]
[1744366047509,0.2050315,82453.0,82452.0,0.121353]
[1744366048008,4e-05,82453.0,82444.0,0.00018202]
[1744366048207,0.1213633,82445.0,82444.0,0.00018202]
[1744366048698,0.2176633,82445.0,82444.0,0.00018202]
[1744366053005,0.0606882,82437.0,82431.0,0.1820677]
[1744366053205,0.1820924,82427.0,82426.0,0.1213849]
[1744366053716,0.1213927,82425.0,82424.0,0.0606964]
[1744366053908,0.4821927,82425.0,82424.0,0.0606964]
[1744366054308,0.5446927,82425.0,82424.0,0.0606964]
[1744366054903,0.0625,82425.0,82424.0,0.0606964]
[1744366055109,0.1839327,82425.0,82424.0,0.0606964]
[1744366055517,0.1838927,82425.0,82424.0,0.0606964]
[1744366055719,0.1839327,82425.0,82424.0,0.0912964]
[1744366056515,0.1214045,82417.0,82400.0,0.4082]
[1744366056720,0.4822045,82417.0,82416.0,0.12158802]
[1744366057516,0.5431045,82417.0,82416.0,0.12158802]
[1744366058108,0.5128045,82417.0,82416.0,0.12158802]
[1744366058305,0.0306,82417.0,82416.0,0.12158802]
[1744366058507,0.4214966,82425.0,82422.0,0.060698]
[1744366058712,0.3608,82432.0,82427.0,0.0606948]
[1744366058921,7.291e-05,82429.0,82428.0,0.2469819]
[1744366059110,0.3608,82432.0,82431.0,0.1213839]
[1744366059710,0.4822224,82432.0,82431.0,0.1213839]
[1744366060118,0.5134224,82432.0,82431.0,0.1213839]
[1744366060725,0.0606984,82423.0,82403.0,0.3608]
[1744366061011,0.39204,82432.0,82420.0,0.0328]
[1744366061012,0.1213986,82421.0,82420.0,0.0328]
[1744366061219,0.1213986,82421.0,82420.0,0.0649]
[1744366061420,0.0625,82421.0,82420.0,0.1863001]
[1744366062023,0.1838986,82421.0,82420.0,0.0649]
[1744366062319,0.1214045,82417.0,82416.0,0.00018202]
[1744366062812,0.1214045,82417.0,82416.0,0.12158802]
[1744366063008,0.0308,82418.0,82417.0,0.1214045]
[1744366063208,0.152203,82418.0,82417.0,0.1860045]
[1744366063519,0.1213995,82421.0,82420.0,0.1214001]
[1744366063719,0.3608,82424.0,82421.0,0.0606989]
[1744366064018,0.0308,82428.0,82427.0,0.1213898]
[1744366064219,0.0308,82428.0,82427.0,0.4821898]
[1744366064807,4e-05,82428.0,82427.0,0.5466898]
[1744366065013,0.00018202,82433.0,82431.0,0.1213828]
[1744366065213,0.12161703,82433.0,82432.0,0.0645]
[1744366065813,0.12161703,82433.0,82432.0,0.1858824]
[1744366066629,0.1213854,82431.0,82430.0,0.1213824]
[1744366067126,0.1525854,82431.0,82430.0,0.1213824]
[1744366067723,0.00023603,82433.0,82432.0,0.1213824]
[1744366068119,0.00018202,82433.0,82432.0,0.1213824]
[1744366068321,0.00022202,82433.0,82432.0,0.1541824]
[1744366068524,0.00022202,82433.0,82432.0,0.1855824]
[1744366069122,0.00018202,82433.0,82432.0,0.1855824]
[1744366069628,0.00022202,82433.0,82432.0,0.1855824]
[1744366071123,0.0309,82446.0,82445.0,0.1213633]
[1744366071323,0.0305,82457.0,82452.0,0.121353]
[1744366071624,0.1213476,82456.0,82455.0,0.1213486]
[1744366072630,0.0335,82458.0,82457.0,0.1213456]